[Event "Late-Titled-Tuesday-Blitz-March-26-2024"]
[Site "Chess.com"]
[Date "2024.03.26"]
[Round "8"]
[White "dianamirza"]
[Black "campochess"]
[Result "0-1"]
[WhiteElo "1979"]
[BlackElo "2169"]
[TimeControl "180+1"]
[EndTime "15:26:44 PDT"]
[Termination "campochess won by checkmate"]

1. d4 {[%clk 0:02:34.5]} 1... Nf6 {[%clk 0:02:58.8]} 2. e3 {[%clk 0:02:35.3]}
2... b6 {[%clk 0:02:56.4]} 3. Nf3 {[%clk 0:02:36.2]} 3... Bb7 {[%clk 0:02:55.9]}
4. Bd3 {[%clk 0:02:29.2]} 4... d6 {[%clk 0:02:53.5]} 5. O-O {[%clk 0:02:12.6]}
5... Nbd7 {[%clk 0:02:53.2]} 6. b3 {[%clk 0:01:16.8]} 6... g6 {[%clk 0:02:51.3]}
7. Bb2 {[%clk 0:01:16.1]} 7... Bg7 {[%clk 0:02:51.1]} 8. Nbd2 {[%clk 0:01:16]}
8... O-O {[%clk 0:02:50.7]} 9. c4 {[%clk 0:01:13]} 9... e5 {[%clk 0:02:48.9]}
10. dxe5 {[%clk 0:01:12.8]} 10... Ng4 {[%clk 0:02:48.2]} 11. Rb1 {[%clk
0:00:34.1]} 11... Ngxe5 {[%clk 0:02:43.1]} 12. Nxe5 {[%clk 0:00:33.4]} 12...
Nxe5 {[%clk 0:02:42.8]} 13. Bc2 {[%clk 0:00:18.2]} 13... Qh4 {[%clk 0:02:40.8]}
14. f4 {[%clk 0:00:13.1]} 14... Ng4 {[%clk 0:02:39.3]} 15. h3 {[%clk 0:00:09.1]}
15... Bxb2 {[%clk 0:02:37.8]} 16. Qxg4 {[%clk 0:00:06.5]} 16... Qxg4 {[%clk
0:02:36.2]} 17. hxg4 {[%clk 0:00:07.1]} 17... Bc3 {[%clk 0:02:35.9]} 18. Ne4
{[%clk 0:00:06.4]} 18... Bg7 {[%clk 0:02:30.4]} 19. Rfe1 {[%clk 0:00:03.4]}
19... Rfe8 {[%clk 0:02:30.2]} 20. Ng3 {[%clk 0:00:03.5]} 20... Re7 {[%clk
0:02:30]} 21. Rbd1 {[%clk 0:00:04]} 21... Rae8 {[%clk 0:02:29.8]} 22. Kf2 {[%clk
0:00:04.7]} 22... Bc3 {[%clk 0:02:27.7]} 23. Re2 {[%clk 0:00:04.7]} 23... Bb4
{[%clk 0:02:20.1]} 24. e4 {[%clk 0:00:05.1]} 24... Bc5+ {[%clk 0:02:13.5]} 25.
Kf1 {[%clk 0:00:05]} 25... Kg7 {[%clk 0:02:03.2]} 26. f5 {[%clk 0:00:05.5]}
26... Kf6 {[%clk 0:01:54]} 27. Ke1 {[%clk 0:00:03.2]} 27... Kg5 {[%clk
0:01:53.7]} 28. Red2 {[%clk 0:00:01.5]} 28... Kxg4 {[%clk 0:01:52.2]} 29. Ne2
{[%clk 0:00:01.4]} 29... Bxe4 {[%clk 0:01:49.5]} 30. Bxe4 {[%clk 0:00:02.3]}
30... Rxe4 {[%clk 0:01:48.7]} 31. Kf1 {[%clk 0:00:02.4]} 31... gxf5 {[%clk
0:01:43.4]} 32. g3 {[%clk 0:00:02.9]} 32... Re3 {[%clk 0:01:37.6]} 33. Re1
{[%clk 0:00:03.4]} 33... Rf3+ {[%clk 0:01:37.3]} 34. Kg2 {[%clk 0:00:03.4]}
34... Rf2+ {[%clk 0:01:36.5]} 35. Kh1 {[%clk 0:00:04]} 35... Bb4 {[%clk
0:01:25.9]} 36. Nd4 {[%clk 0:00:01.6]} 36... Rxe1# {[%clk 0:01:22.6]} 0-1

[Event "Late-Titled-Tuesday-Blitz-March-26-2024"]
[Site "Chess.com"]
[Date "2024.03.26"]
[Round "8"]
[White "RantomOpening"]
[Black "sacrifoice"]
[Result "1-0"]
[WhiteElo "2568"]
[BlackElo "2243"]
[TimeControl "180+1"]
[EndTime "15:26:51 PDT"]
[Termination "RantomOpening won by resignation"]

1. g3 {[%clk 0:03:00.3]} 1... d5 {[%clk 0:02:50.6]} 2. Bg2 {[%clk 0:03:01.2]}
2... Nf6 {[%clk 0:02:50.5]} 3. Nf3 {[%clk 0:03:01.6]} 3... g6 {[%clk 0:02:50.5]}
4. O-O {[%clk 0:03:02.5]} 4... Bg7 {[%clk 0:02:50.7]} 5. d3 {[%clk 0:03:03.4]}
5... O-O {[%clk 0:02:50.9]} 6. Re1 {[%clk 0:03:04.3]} 6... Nc6 {[%clk
0:02:50.1]} 7. c3 {[%clk 0:03:04.7]} 7... Bg4 {[%clk 0:02:48.2]} 8. Qc2 {[%clk
0:03:05]} 8... Qd7 {[%clk 0:02:47.7]} 9. Bg5 {[%clk 0:03:04.3]} 9... Bh3 {[%clk
0:02:46.3]} 10. Nbd2 {[%clk 0:03:04.6]} 10... Bxg2 {[%clk 0:02:45.6]} 11. Kxg2
{[%clk 0:03:05.5]} 11... h6 {[%clk 0:02:37.4]} 12. Bxf6 {[%clk 0:03:05]} 12...
exf6 {[%clk 0:02:36.8]} 13. e4 {[%clk 0:03:05.9]} 13... dxe4 {[%clk 0:02:35.4]}
14. dxe4 {[%clk 0:03:06.7]} 14... Ne5 {[%clk 0:02:32.4]} 15. Rad1 {[%clk
0:03:07.6]} 15... Nd3 {[%clk 0:02:17.9]} 16. Re3 {[%clk 0:03:07.2]} 16... Rad8
{[%clk 0:02:16.5]} 17. Nb3 {[%clk 0:02:53.3]} 17... Nf4+ {[%clk 0:02:15]} 18.
gxf4 {[%clk 0:02:47.7]} 18... Qxd1 {[%clk 0:02:14.1]} 19. Qxd1 {[%clk
0:02:47.6]} 19... Rxd1 {[%clk 0:02:15]} 20. Nfd4 {[%clk 0:02:40.2]} 20... Rd8
{[%clk 0:02:02.8]} 21. e5 {[%clk 0:02:09.9]} 21... fxe5 {[%clk 0:02:01.9]} 22.
fxe5 {[%clk 0:02:10.8]} 22... Rd5 {[%clk 0:01:57.2]} 23. e6 {[%clk 0:02:10]}
23... fxe6 {[%clk 0:01:48.3]} 24. Rxe6 {[%clk 0:02:09.1]} 24... c5 {[%clk
0:01:22.3]} 25. Nc2 {[%clk 0:01:49.2]} 25... Kf7 {[%clk 0:01:18.3]} 26. Re2
{[%clk 0:01:47.1]} 26... b6 {[%clk 0:01:08.8]} 27. h4 {[%clk 0:01:46.2]} 27...
Rb1 {[%clk 0:01:03.4]} 28. Na3 {[%clk 0:01:45]} 28... Rbd1 {[%clk 0:01:00.2]}
29. Nc2 {[%clk 0:01:45]} 29... Re5 {[%clk 0:00:52.2]} 30. Ne3 {[%clk 0:01:41.6]}
30... Rd7 {[%clk 0:00:43.3]} 31. Nd2 {[%clk 0:01:38.8]} 31... Bf6 {[%clk
0:00:40.5]} 32. Ndc4 {[%clk 0:01:38.2]} 32... Re4 {[%clk 0:00:37.4]} 33. h5
{[%clk 0:01:32]} 33... gxh5 {[%clk 0:00:37.1]} 34. a4 {[%clk 0:01:32]} 34... Ke6
{[%clk 0:00:29.9]} 35. f3 {[%clk 0:01:29.1]} 35... Rg7+ {[%clk 0:00:27.1]} 36.
Kf1 {[%clk 0:01:26.6]} 36... Rxe3 {[%clk 0:00:15.8]} 37. Nxe3 {[%clk 0:01:27.5]}
37... Kd6 {[%clk 0:00:13.7]} 38. Nf5+ {[%clk 0:01:27.2]} 1-0

[Event "Late-Titled-Tuesday-Blitz-March-26-2024"]
[Site "Chess.com"]
[Date "2024.03.26"]
[Round "8"]
[White "ACollins05"]
[Black "falzehope0"]
[Result "1-0"]
[WhiteElo "2521"]
[BlackElo "2387"]
[TimeControl "180+1"]
[EndTime "15:27:00 PDT"]
[Termination "ACollins05 won by resignation"]

1. Nf3 {[%clk 0:03:00.9]} 1... d5 {[%clk 0:02:59.5]} 2. e3 {[%clk 0:03:00.7]}
2... e6 {[%clk 0:02:59.6]} 3. b3 {[%clk 0:03:01.1]} 3... f5 {[%clk 0:02:58.1]}
4. Bb2 {[%clk 0:03:01.1]} 4... Nf6 {[%clk 0:02:58.7]} 5. Be2 {[%clk 0:03:01]}
5... Bd6 {[%clk 0:02:59]} 6. O-O {[%clk 0:02:57.8]} 6... O-O {[%clk 0:02:59]} 7.
c4 {[%clk 0:02:57.5]} 7... c6 {[%clk 0:02:58.8]} 8. Ba3 {[%clk 0:02:52.5]} 8...
Bxa3 {[%clk 0:02:57.7]} 9. Nxa3 {[%clk 0:02:53.4]} 9... Nbd7 {[%clk 0:02:56.2]}
10. d4 {[%clk 0:02:52.8]} 10... Ne4 {[%clk 0:02:55]} 11. Nc2 {[%clk 0:02:51.6]}
11... Qf6 {[%clk 0:02:54.1]} 12. Nce1 {[%clk 0:02:51.6]} 12... g5 {[%clk
0:02:53.8]} 13. Nd3 {[%clk 0:02:51.7]} 13... Nd6 {[%clk 0:02:52]} 14. Rc1 {[%clk
0:02:48.1]} 14... Nf7 {[%clk 0:02:52]} 15. cxd5 {[%clk 0:02:40.7]} 15... exd5
{[%clk 0:02:51.1]} 16. b4 {[%clk 0:02:41.2]} 16... a6 {[%clk 0:02:50.5]} 17. a4
{[%clk 0:02:41]} 17... g4 {[%clk 0:02:47.1]} 18. Nd2 {[%clk 0:02:38.4]} 18...
Qg5 {[%clk 0:02:41.6]} 19. b5 {[%clk 0:02:27.8]} 19... cxb5 {[%clk 0:02:33.8]}
20. axb5 {[%clk 0:02:28.7]} 20... a5 {[%clk 0:02:32.2]} 21. Nc5 {[%clk
0:02:25.3]} 21... Nxc5 {[%clk 0:02:26.6]} 22. dxc5 {[%clk 0:02:26.2]} 22... Be6
{[%clk 0:02:23.1]} 23. Nb3 {[%clk 0:02:24.5]} 23... Qf6 {[%clk 0:02:16.6]} 24.
Nd4 {[%clk 0:02:22.8]} 24... Ne5 {[%clk 0:02:15.1]} 25. Qd2 {[%clk 0:02:15.4]}
25... Bf7 {[%clk 0:02:14]} 26. b6 {[%clk 0:02:12.9]} 26... Nc4 {[%clk
0:02:10.5]} 27. Bxc4 {[%clk 0:02:12]} 27... dxc4 {[%clk 0:02:10.3]} 28. Nb5
{[%clk 0:02:11.1]} 28... Qc6 {[%clk 0:01:57]} 29. Nc7 {[%clk 0:02:03.9]} 29...
Qxc5 {[%clk 0:01:56.6]} 30. Nxa8 {[%clk 0:02:03.2]} 30... Rxa8 {[%clk
0:01:53.9]} 31. Qb2 {[%clk 0:01:59.1]} 31... Ra6 {[%clk 0:01:47.3]} 32. Rb1
{[%clk 0:01:57.6]} 32... a4 {[%clk 0:01:33.8]} 33. Rfd1 {[%clk 0:01:57.1]} 33...
Qe7 {[%clk 0:01:22.1]} 34. Qb5 {[%clk 0:01:48.6]} 34... Be6 {[%clk 0:00:59.8]}
35. Qxa6 {[%clk 0:01:47.7]} 35... bxa6 {[%clk 0:00:58.1]} 36. b7 {[%clk
0:01:48.6]} 36... Qxb7 {[%clk 0:00:34.9]} 37. Rxb7 {[%clk 0:01:46.4]} 37... Bf7
{[%clk 0:00:35.1]} 38. Rd8+ {[%clk 0:01:31.9]} 38... Kg7 {[%clk 0:00:34.7]} 39.
Rdd7 {[%clk 0:01:32.2]} 39... a3 {[%clk 0:00:30.9]} 40. Rxf7+ {[%clk 0:01:32.1]}
40... Kg6 {[%clk 0:00:30.8]} 41. Rfd7 {[%clk 0:01:31.2]} 41... a2 {[%clk
0:00:27.4]} 42. Rd1 {[%clk 0:01:30.6]} 42... c3 {[%clk 0:00:27.5]} 43. Ra7
{[%clk 0:01:30.2]} 43... c2 {[%clk 0:00:27.2]} 44. Rxa6+ {[%clk 0:01:28.8]}
44... Kg5 {[%clk 0:00:27.2]} 45. Rc1 {[%clk 0:01:29]} 45... h5 {[%clk
0:00:26.4]} 46. Rxa2 {[%clk 0:01:28.6]} 46... Kh4 {[%clk 0:00:19]} 47. Raxc2
{[%clk 0:01:27.3]} 47... f4 {[%clk 0:00:16.7]} 48. exf4 {[%clk 0:01:25.4]} 48...
g3 {[%clk 0:00:16.5]} 49. fxg3+ {[%clk 0:01:23.1]} 49... Kg4 {[%clk 0:00:16.7]}
50. Rc5 {[%clk 0:01:21.2]} 1-0

[Event "Late-Titled-Tuesday-Blitz-March-26-2024"]
[Site "Chess.com"]
[Date "2024.03.26"]
[Round "8"]
[White "Genghis_K"]
[Black "Kildepiotr"]
[Result "1-0"]
[WhiteElo "2924"]
[BlackElo "2731"]
[TimeControl "180+1"]
[EndTime "15:27:04 PDT"]
[Termination "Genghis_K won by resignation"]

1. e4 {[%clk 0:02:47.6]} 1... e6 {[%clk 0:02:59.8]} 2. d4 {[%clk 0:02:43.9]}
2... d5 {[%clk 0:03:00]} 3. Nc3 {[%clk 0:02:44.2]} 3... Bb4 {[%clk 0:02:59.8]}
4. Ne2 {[%clk 0:02:44.5]} 4... dxe4 {[%clk 0:02:59.4]} 5. a3 {[%clk 0:02:44.6]}
5... Be7 {[%clk 0:02:59.3]} 6. Nxe4 {[%clk 0:02:44.5]} 6... Nf6 {[%clk
0:02:59.7]} 7. Nxf6+ {[%clk 0:02:44.9]} 7... Bxf6 {[%clk 0:02:59.9]} 8. Qd3
{[%clk 0:02:45.4]} 8... b6 {[%clk 0:02:54.4]} 9. Qe4 {[%clk 0:02:33.2]} 9... Qd5
{[%clk 0:02:46.6]} 10. Qxd5 {[%clk 0:02:24]} 10... exd5 {[%clk 0:02:47.5]} 11.
Nf4 {[%clk 0:02:24.3]} 11... c6 {[%clk 0:02:47.3]} 12. c3 {[%clk 0:02:22.3]}
12... Bf5 {[%clk 0:02:43.7]} 13. Nh5 {[%clk 0:02:20.5]} 13... Nd7 {[%clk
0:02:42.4]} 14. Nxf6+ {[%clk 0:02:16.6]} 14... Nxf6 {[%clk 0:02:43.3]} 15. f3
{[%clk 0:02:16.9]} 15... Kd7 {[%clk 0:02:41.3]} 16. Kf2 {[%clk 0:02:16.7]} 16...
h5 {[%clk 0:02:40.5]} 17. h4 {[%clk 0:02:14.7]} 17... a5 {[%clk 0:02:36.9]} 18.
a4 {[%clk 0:02:14.3]} 18... Rhe8 {[%clk 0:02:35.1]} 19. Bf4 {[%clk 0:02:12.9]}
19... Ng8 {[%clk 0:02:27.9]} 20. Be2 {[%clk 0:02:08.9]} 20... Ne7 {[%clk
0:02:25.2]} 21. Rhc1 {[%clk 0:02:09.3]} 21... Ng6 {[%clk 0:02:24.1]} 22. Bg3
{[%clk 0:02:09.7]} 22... Be6 {[%clk 0:02:22]} 23. b3 {[%clk 0:02:09.6]} 23...
Ne7 {[%clk 0:02:20.1]} 24. Bf4 {[%clk 0:02:06.5]} 24... Ng6 {[%clk 0:02:20.2]}
25. Bg3 {[%clk 0:02:06.1]} 25... Ne7 {[%clk 0:02:20.5]} 26. Be5 {[%clk
0:01:44.3]} 26... f6 {[%clk 0:02:15.9]} 27. Bf4 {[%clk 0:01:44.2]} 27... Ng6
{[%clk 0:02:15.7]} 28. Bd2 {[%clk 0:01:41.2]} 28... Bf5 {[%clk 0:02:09.6]} 29.
g3 {[%clk 0:01:37.7]} 29... Re7 {[%clk 0:02:06.6]} 30. c4 {[%clk 0:01:35.8]}
30... Be6 {[%clk 0:01:52.4]} 31. c5 {[%clk 0:01:34.4]} 31... bxc5 {[%clk
0:01:49.8]} 32. Rxc5 {[%clk 0:01:34.2]} 32... Bf5 {[%clk 0:01:44.6]} 33. Rxa5
{[%clk 0:01:30.1]} 33... Rxa5 {[%clk 0:01:44]} 34. Bxa5 {[%clk 0:01:30.7]} 34...
Bc2 {[%clk 0:01:43.4]} 35. Ra3 {[%clk 0:01:18]} 35... Re8 {[%clk 0:01:41.5]} 36.
Bb6 {[%clk 0:01:16.1]} 36... Ne7 {[%clk 0:01:38.6]} 37. a5 {[%clk 0:01:14.7]}
37... Nf5 {[%clk 0:01:34]} 38. Bf1 {[%clk 0:01:08.7]} 38... Ne3 {[%clk
0:01:30.8]} 39. a6 {[%clk 0:01:05.7]} 39... Nd1+ {[%clk 0:01:29.1]} 40. Kg1
{[%clk 0:01:02.8]} 40... Re1 {[%clk 0:01:19.3]} 41. b4 {[%clk 0:01:02.2]} 41...
Ne3 {[%clk 0:01:02.1]} 42. Kf2 {[%clk 0:00:38.7]} 42... Rxf1+ {[%clk 0:01:00.6]}
43. Kxe3 {[%clk 0:00:39.3]} 43... Bd1 {[%clk 0:00:53.8]} 44. Kd2 {[%clk
0:00:38]} 44... Bxf3 {[%clk 0:00:48.8]} 45. a7 {[%clk 0:00:37.2]} 1-0

[Event "Late-Titled-Tuesday-Blitz-March-26-2024"]
[Site "Chess.com"]
[Date "2024.03.26"]
[Round "8"]
[White "ContrVersia"]
[Black "only_strong_moves"]
[Result "1-0"]
[WhiteElo "2915"]
[BlackElo "2689"]
[TimeControl "180+1"]
[EndTime "15:27:04 PDT"]
[Termination "ContrVersia won by resignation"]

1. Nf3 {[%clk 0:02:47.6]} 1... Nf6 {[%clk 0:02:59.7]} 2. c4 {[%clk 0:02:47.8]}
2... e6 {[%clk 0:03:00.3]} 3. g3 {[%clk 0:02:48.3]} 3... d5 {[%clk 0:03:00.8]}
4. Bg2 {[%clk 0:02:49]} 4... Be7 {[%clk 0:03:01.2]} 5. O-O {[%clk 0:02:49.3]}
5... O-O {[%clk 0:03:01.4]} 6. b3 {[%clk 0:02:49.9]} 6... c5 {[%clk 0:03:01.1]}
7. Bb2 {[%clk 0:02:49.8]} 7... d4 {[%clk 0:03:01.4]} 8. e3 {[%clk 0:02:50.1]}
8... Nc6 {[%clk 0:03:01.9]} 9. exd4 {[%clk 0:02:51]} 9... cxd4 {[%clk
0:03:02.3]} 10. Re1 {[%clk 0:02:51.9]} 10... a5 {[%clk 0:03:00]} 11. Na3 {[%clk
0:02:51.8]} 11... Bc5 {[%clk 0:03:00]} 12. Nb5 {[%clk 0:02:51]} 12... Re8 {[%clk
0:02:55.7]} 13. Ne5 {[%clk 0:02:51.2]} 13... Ra6 {[%clk 0:02:51.5]} 14. Nd3
{[%clk 0:02:38.4]} 14... Bf8 {[%clk 0:02:31.1]} 15. f4 {[%clk 0:02:35.2]} 15...
a4 {[%clk 0:02:05.4]} 16. Rb1 {[%clk 0:02:26.3]} 16... a3 {[%clk 0:01:52.2]} 17.
Ba1 {[%clk 0:02:26.1]} 17... g6 {[%clk 0:01:48.3]} 18. Ne5 {[%clk 0:02:18.1]}
18... Nd7 {[%clk 0:01:38.9]} 19. Nxc6 {[%clk 0:02:16.8]} 19... bxc6 {[%clk
0:01:37.9]} 20. Nxd4 {[%clk 0:02:17.2]} 20... Qb6 {[%clk 0:01:34.5]} 21. Kh1
{[%clk 0:02:11.7]} 21... Bb7 {[%clk 0:01:33.8]} 22. Nf3 {[%clk 0:01:44.2]} 22...
c5 {[%clk 0:01:30.7]} 23. d4 {[%clk 0:01:44.4]} 23... Rd8 {[%clk 0:01:23.4]} 24.
dxc5 {[%clk 0:01:28.2]} 24... Nxc5 {[%clk 0:01:21.9]} 25. Qe2 {[%clk 0:01:28.6]}
25... Nd3 {[%clk 0:01:20.1]} 26. Rf1 {[%clk 0:01:27.2]} 26... Bc5 {[%clk
0:01:19.4]} 27. h3 {[%clk 0:01:21.4]} 27... Nf2+ {[%clk 0:01:13.7]} 28. Kh2
{[%clk 0:01:21.4]} 28... Be4 {[%clk 0:01:14.4]} 29. Rxf2 {[%clk 0:01:08.7]}
29... Bxb1 {[%clk 0:01:14.5]} 30. Qe5 {[%clk 0:01:08.7]} 30... Kf8 {[%clk
0:01:06.8]} 31. Qh8+ {[%clk 0:01:00.8]} 31... Ke7 {[%clk 0:01:07.2]} 32. Bf6+
{[%clk 0:01:01.1]} 32... Kd7 {[%clk 0:01:01.3]} 33. Rd2+ {[%clk 0:00:58.4]}
33... Bd6 {[%clk 0:01:01.3]} 34. Ne5+ {[%clk 0:00:54.1]} 34... Kc8 {[%clk
0:01:01.5]} 35. Bxd8 {[%clk 0:00:54.1]} 35... Qxd8 {[%clk 0:00:59.1]} 36. Qxd8+
{[%clk 0:00:54.1]} 36... Kxd8 {[%clk 0:00:59.8]} 37. c5 {[%clk 0:00:54.2]} 37...
Bxa2 {[%clk 0:00:49.4]} 38. Nxf7+ {[%clk 0:00:39.7]} 38... Ke7 {[%clk
0:00:45.6]} 39. cxd6+ {[%clk 0:00:39.5]} 39... Kd7 {[%clk 0:00:35.8]} 40. Ne5+
{[%clk 0:00:38.7]} 1-0

[Event "Late-Titled-Tuesday-Blitz-March-26-2024"]
[Site "Chess.com"]
[Date "2024.03.26"]
[Round "8"]
[White "Byniolus"]
[Black "alexrustemov"]
[Result "1/2-1/2"]
[WhiteElo "2740"]
[BlackElo "2917"]
[TimeControl "180+1"]
[EndTime "15:27:07 PDT"]
[Termination "Game drawn by repetition"]

1. d4 {[%clk 0:03:00.9]} 1... d5 {[%clk 0:03:00]} 2. Nf3 {[%clk 0:03:00.6]} 2...
Nf6 {[%clk 0:03:00.5]} 3. Bf4 {[%clk 0:03:01]} 3... c5 {[%clk 0:03:01]} 4. c3
{[%clk 0:03:01.6]} 4... Nc6 {[%clk 0:03:01.7]} 5. Nbd2 {[%clk 0:03:02.2]} 5...
cxd4 {[%clk 0:02:44]} 6. cxd4 {[%clk 0:03:03.1]} 6... Bf5 {[%clk 0:02:43.8]} 7.
e3 {[%clk 0:03:03]} 7... e6 {[%clk 0:02:43.7]} 8. Qb3 {[%clk 0:03:03.3]} 8...
Bb4 {[%clk 0:02:37.6]} 9. a3 {[%clk 0:03:03.7]} 9... Bxd2+ {[%clk 0:02:37.4]}
10. Nxd2 {[%clk 0:03:01.6]} 10... Qe7 {[%clk 0:02:32]} 11. Be2 {[%clk
0:02:52.2]} 11... O-O {[%clk 0:02:31.9]} 12. O-O {[%clk 0:02:51.7]} 12... Rfc8
{[%clk 0:02:31.3]} 13. Rfc1 {[%clk 0:02:51.4]} 13... Ne4 {[%clk 0:02:29]} 14.
Nxe4 {[%clk 0:02:34.5]} 14... Bxe4 {[%clk 0:02:29.9]} 15. Rc3 {[%clk 0:02:25.2]}
15... a6 {[%clk 0:02:29.1]} 16. Rac1 {[%clk 0:02:23]} 16... h6 {[%clk
0:02:26.8]} 17. Qb6 {[%clk 0:02:18.1]} 17... Rd8 {[%clk 0:01:51.5]} 18. h3
{[%clk 0:02:13.3]} 18... Rd7 {[%clk 0:01:51.7]} 19. b4 {[%clk 0:02:08.9]} 19...
Kh7 {[%clk 0:01:47.6]} 20. Rc5 {[%clk 0:02:03.2]} 20... Qd8 {[%clk 0:01:39.5]}
21. Qxd8 {[%clk 0:01:59.9]} 21... Rdxd8 {[%clk 0:01:39.7]} 22. f3 {[%clk
0:01:53]} 22... Bg6 {[%clk 0:01:39]} 23. Kf2 {[%clk 0:01:50]} 23... Rd7 {[%clk
0:01:39.3]} 24. R5c3 {[%clk 0:01:41.4]} 24... f6 {[%clk 0:01:39.2]} 25. Bg3
{[%clk 0:01:38.2]} 25... e5 {[%clk 0:01:38.7]} 26. Rxc6 {[%clk 0:01:23.3]} 26...
bxc6 {[%clk 0:01:37.6]} 27. dxe5 {[%clk 0:01:24.2]} 27... fxe5 {[%clk
0:01:33.9]} 28. Bxe5 {[%clk 0:01:25.1]} 28... a5 {[%clk 0:01:33.5]} 29. Kg3
{[%clk 0:01:00.9]} 29... axb4 {[%clk 0:01:30.3]} 30. axb4 {[%clk 0:01:01.8]}
30... Ra2 {[%clk 0:01:29.5]} 31. Bf1 {[%clk 0:00:56.5]} 31... Re7 {[%clk
0:01:28.7]} 32. Bd4 {[%clk 0:00:53.3]} 32... Rc2 {[%clk 0:01:14.9]} 33. Ra1
{[%clk 0:00:44.4]} 33... Rb7 {[%clk 0:01:10.6]} 34. Bc5 {[%clk 0:00:38.8]} 34...
Rb2 {[%clk 0:00:57]} 35. Ra6 {[%clk 0:00:24.4]} 35... Rb1 {[%clk 0:00:56.8]} 36.
Be2 {[%clk 0:00:23.5]} 36... Rb2 {[%clk 0:00:52.5]} 37. Bf1 {[%clk 0:00:23.8]}
37... Rb1 {[%clk 0:00:42.3]} 38. Be2 {[%clk 0:00:24.2]} 38... Rb2 {[%clk
0:00:42.1]} 39. Bf1 {[%clk 0:00:24.6]} 1/2-1/2

[Event "Late-Titled-Tuesday-Blitz-March-26-2024"]
[Site "Chess.com"]
[Date "2024.03.26"]
[Round "8"]
[White "Practical-Play"]
[Black "Matrix3x3a"]
[Result "0-1"]
[WhiteElo "2471"]
[BlackElo "2611"]
[TimeControl "180+1"]
[EndTime "15:27:09 PDT"]
[Termination "Matrix3x3a won by resignation"]

1. e4 {[%clk 0:02:29.3]} 1... c5 {[%clk 0:02:59.6]} 2. c3 {[%clk 0:02:28.7]}
2... Nf6 {[%clk 0:02:58.8]} 3. e5 {[%clk 0:02:28.9]} 3... Nd5 {[%clk 0:02:58.5]}
4. d4 {[%clk 0:02:29.4]} 4... cxd4 {[%clk 0:02:58.2]} 5. Nf3 {[%clk 0:02:30]}
5... Nc6 {[%clk 0:02:57.8]} 6. Bc4 {[%clk 0:02:30.6]} 6... Nb6 {[%clk
0:02:57.6]} 7. Bb3 {[%clk 0:02:30.5]} 7... d5 {[%clk 0:02:56.8]} 8. exd6 {[%clk
0:02:30.3]} 8... Qxd6 {[%clk 0:02:55.7]} 9. O-O {[%clk 0:02:30.4]} 9... Be6
{[%clk 0:02:52.1]} 10. Na3 {[%clk 0:02:29.6]} 10... a6 {[%clk 0:02:42.9]} 11.
Bxe6 {[%clk 0:02:24.9]} 11... Qxe6 {[%clk 0:02:43.8]} 12. Re1 {[%clk 0:02:17.4]}
12... Qd7 {[%clk 0:02:41]} 13. Qb3 {[%clk 0:02:15]} 13... Nd5 {[%clk 0:02:38.1]}
14. Nc4 {[%clk 0:01:48.3]} 14... e6 {[%clk 0:02:31.8]} 15. Nce5 {[%clk
0:01:41.3]} 15... Nxe5 {[%clk 0:02:29.4]} 16. Nxe5 {[%clk 0:01:39.9]} 16... Qc7
{[%clk 0:02:26]} 17. c4 {[%clk 0:01:34.7]} 17... Nf6 {[%clk 0:02:10.4]} 18. Bf4
{[%clk 0:01:22.9]} 18... Bd6 {[%clk 0:02:05.1]} 19. c5 {[%clk 0:00:47.4]} 19...
Qxc5 {[%clk 0:01:55.5]} 20. Nxf7 {[%clk 0:00:45.7]} 20... Bxf4 {[%clk
0:01:40.6]} 21. Qxe6+ {[%clk 0:00:44]} 21... Kf8 {[%clk 0:01:37.9]} 22. Nxh8
{[%clk 0:00:34.1]} 22... Qc7 {[%clk 0:01:38]} 23. g3 {[%clk 0:00:17.3]} 23...
Bh6 {[%clk 0:01:37.6]} 24. Rad1 {[%clk 0:00:14.8]} 24... Rd8 {[%clk 0:01:31.3]}
25. Rd3 {[%clk 0:00:13.2]} 25... Re8 {[%clk 0:01:23.2]} 26. Qb3 {[%clk
0:00:09.4]} 26... Rxe1+ {[%clk 0:01:20]} 27. Kg2 {[%clk 0:00:09.1]} 27... Re8
{[%clk 0:01:10.8]} 28. Rf3 {[%clk 0:00:08.4]} 28... Rd8 {[%clk 0:01:04.7]} 29.
g4 {[%clk 0:00:05.7]} 29... Qd7 {[%clk 0:01:02.7]} 30. h3 {[%clk 0:00:03.9]}
30... Qd5 {[%clk 0:00:56.2]} 31. Qb6 {[%clk 0:00:02.8]} 31... Kg8 {[%clk
0:00:52.4]} 32. Kg3 {[%clk 0:00:01.6]} 32... Kxh8 {[%clk 0:00:49.1]} 33. Rxf6
{[%clk 0:00:01.8]} 33... gxf6 {[%clk 0:00:48]} 34. Qxf6+ {[%clk 0:00:02.7]} 0-1

[Event "Late-Titled-Tuesday-Blitz-March-26-2024"]
[Site "Chess.com"]
[Date "2024.03.26"]
[Round "8"]
[White "katharinareinecke"]
[Black "JaackCamel"]
[Result "0-1"]
[WhiteElo "2001"]
[BlackElo "2192"]
[TimeControl "180+1"]
[EndTime "15:27:13 PDT"]
[Termination "JaackCamel won on time"]

1. d4 {[%clk 0:03:00.9]} 1... d5 {[%clk 0:02:58.9]} 2. c4 {[%clk 0:02:59.5]}
2... e6 {[%clk 0:02:58.5]} 3. Nf3 {[%clk 0:02:55.6]} 3... c6 {[%clk 0:02:58.2]}
4. g3 {[%clk 0:02:44.7]} 4... dxc4 {[%clk 0:02:57.6]} 5. Bg2 {[%clk 0:02:43]}
5... b5 {[%clk 0:02:57.4]} 6. O-O {[%clk 0:02:41]} 6... Bb7 {[%clk 0:02:57]} 7.
a4 {[%clk 0:02:40.6]} 7... Nd7 {[%clk 0:02:54.1]} 8. b3 {[%clk 0:02:38.2]} 8...
cxb3 {[%clk 0:02:52.9]} 9. Qxb3 {[%clk 0:02:37.9]} 9... b4 {[%clk 0:02:52.5]}
10. Nbd2 {[%clk 0:02:31.9]} 10... c5 {[%clk 0:02:51.8]} 11. Nc4 {[%clk
0:02:16.6]} 11... Ngf6 {[%clk 0:02:48.5]} 12. Bg5 {[%clk 0:02:04.3]} 12... Be7
{[%clk 0:02:46.2]} 13. Bxf6 {[%clk 0:01:38.2]} 13... Nxf6 {[%clk 0:02:43.8]} 14.
dxc5 {[%clk 0:01:34.1]} 14... Bxc5 {[%clk 0:02:36.3]} 15. Rfd1 {[%clk
0:01:33.3]} 15... Qe7 {[%clk 0:02:33.6]} 16. Na5 {[%clk 0:01:26.5]} 16... Bd5
{[%clk 0:02:23.3]} 17. Qd3 {[%clk 0:01:11]} 17... O-O {[%clk 0:02:20.4]} 18.
Rac1 {[%clk 0:00:58.5]} 18... Rac8 {[%clk 0:02:14.9]} 19. Ne5 {[%clk 0:00:48.2]}
19... Rfd8 {[%clk 0:01:56.5]} 20. e4 {[%clk 0:00:39.7]} 20... Ba8 {[%clk
0:01:22.1]} 21. Qe2 {[%clk 0:00:37.2]} 21... Qc7 {[%clk 0:01:01.3]} 22. Rxd8+
{[%clk 0:00:20.7]} 22... Rxd8 {[%clk 0:00:59.3]} 23. Nac4 {[%clk 0:00:16.8]}
23... Bd4 {[%clk 0:00:41.3]} 24. Kh1 {[%clk 0:00:15.8]} 24... Bxe5 {[%clk
0:00:39.1]} 25. Qe1 {[%clk 0:00:03.1]} 25... Bc3 {[%clk 0:00:36.3]} 26. Qe2
{[%clk 0:00:01.2]} 26... a5 {[%clk 0:00:30.7]} 0-1